Workbook

Sheet Hoja1
D2: CORRAL N°1 - Calle Maipú
D3: VEHICULOS EN CUSTODIA
A6: N° | B6: PPU | C6: fecha ingreso | D6: Tipo | E6: Costo diario corral | F6: Marca | G6: Modelo | H6: Año Fab. | I6: Color | J6: Motivo de Ingreso | K6: Tribunal | L6: CAUSA ROL/RIT/RUT | M6: Propietario | N6: DIAS EN CORRAL | O6: MONTO ADEUDADO | P6: Fecha retiro de corral | Q6: Monto pagado | R6: Link documentos entrega | AG6: Tipo vehículo
A7: 55 | B7: AW505 | C7: 2017-10-06 | D7: MOTO | E7: =IF(Tabla1[[#This Row],[Tipo]]="","Sin tipo vehículo",LOOKUP(Tabla1[[#This Row],[Tipo]],Tabla2[Tipo vehículo],Tabla2[Valor diario])) -> 317.26 | F7: HONDA | G7: CB 150F | H7: 2014 | I7: NEGRO | J7: DOCUMENTACION VENCIDA | K7: JUZGADO POLICIA LOCAL | L7: Parte 1243-2017 | M7: RODRIGO ANDRES PEREZ PRIETO | N7: =IF(Tabla1[[#This Row],[fecha ingreso]]="","Sin fecha ingreso",TODAY()-Tabla1[[#This Row],[fecha ingreso]]) -> 2222 | O7: =Tabla1[[#This Row],[DIAS EN CORRAL ]]*Tabla1[[#This Row],[Costo diario corral]] -> 704951.72 | AG7: Automovil
A8: 1 | B8: BC5960 | C8: 2015-06-16 | D8: Automovil | E8: =IF(Tabla1[[#This Row],[Tipo]]="","Sin tipo vehículo",LOOKUP(Tabla1[[#This Row],[Tipo]],Tabla2[Tipo vehículo],Tabla2[Valor diario])) -> 1586 | F8: NISSAN | G8: HLB 11 FW1 | H8: 1989 | I8: BLANCO | J8: DOC. VENCIDO | K8: JUZGADO POLICIA LOCAL | L8: RUT:16.133.805-9 | M8: LUIS ERNESTO VILLEGAS VASQUEZ | N8: =IF(Tabla1[[#This Row],[fecha ingreso]]="","Sin fecha ingreso",TODAY()-Tabla1[[#This Row],[fecha ingreso]]) -> 3065 | O8: =IF(Tabla1[[#This Row],[fecha ingreso]]="","Falta tipo vehículo",Tabla1[[#This Row],[Costo diario corral]]*Tabla1[[#This Row],[DIAS EN CORRAL ]]) -> 4861090 | AG8: Biciceta o similar
A9: 2 | B9: BT6472 | C9: 2016-08-21 | D9: Camioneta | E9: =IF(Tabla1[[#This Row],[Tipo]]="","Sin tipo vehículo",LOOKUP(Tabla1[[#This Row],[Tipo]],Tabla2[Tipo vehículo],Tabla2[Valor diario])) -> 1586 | F9: CHEVROLET | G9: LUV KB28L | H9: 1987 | I9: AZUL | J9: SIN DOCUMENTOS | K9: JUZGADO POLICIA LOCAL | L9: PARTE 1180 | M9: LAUTARO ZAMBRANO DIAZ | N9: =IF(Tabla1[[#This Row],[fecha ingreso]]="","Sin fecha ingreso",TODAY()-Tabla1[[#This Row],[fecha ingreso]]) -> 2633 | O9: =IF(Tabla1[[#This Row],[fecha ingreso]]="","Falta tipo vehículo",Tabla1[[#This Row],[Costo diario corral]]*Tabla1[[#This Row],[DIAS EN CORRAL ]]) -> 4175938 | AG9: Bus
A10: 28 | B10: BZDX28 | C10: 2021-03-16 | D10: Automovil | E10: =IF(Tabla1[[#This Row],[Tipo]]="","Sin tipo vehículo",LOOKUP(Tabla1[[#This Row],[Tipo]],Tabla2[Tipo vehículo],Tabla2[Valor diario])) -> 1586 | F10: CHEVROLET | G10: AVEO LS 1.4 | H10: 2009 | I10: ROJO FLAME | J10: DOC. VENCIDO | K10: JUZGADO POLICIA LOCAL | L10: Of. 97 del 30-01-2021 | M10: MAGDALENA DEL ROSARIO TAPIA OLIVARES | N10: =IF(Tabla1[[#This Row],[fecha ingreso]]="","Sin fecha ingreso",TODAY()-Tabla1[[#This Row],[fecha ingreso]]) -> 965 | O10: =IF(Tabla1[[#This Row],[fecha ingreso]]="","Falta tipo vehículo",Tabla1[[#This Row],[Costo diario corral]]*Tabla1[[#This Row],[DIAS EN CORRAL ]]) -> 1530490 | AG10: Camión
A11: 29 | B11: CRZP80 | C11: 2016-04-28 | D11: Automovil | E11: =IF(Tabla1[[#This Row],[Tipo]]="","Sin tipo vehículo",LOOKUP(Tabla1[[#This Row],[Tipo]],Tabla2[Tipo vehículo],Tabla2[Valor diario])) -> 1586 | F11: CHEVROLET | G11: SPARK | H11: 2010 | I11: PLATEADO | J11: DOCUMENTACION VENCIDA | K11: JUZGADO POLICIA LOCAL | L11: PARTE 462, OF. 173/2016 DE CARABINEROS | M11: SALVADOR SILVA CORNEJO | N11: =IF(Tabla1[[#This Row],[fecha ingreso]]="","Sin fecha ingreso",TODAY()-Tabla1[[#This Row],[fecha ingreso]]) -> 2748 | O11: =IF(Tabla1[[#This Row],[fecha ingreso]]="","Falta tipo vehículo",Tabla1[[#This Row],[Costo diario corral]]*Tabla1[[#This Row],[DIAS EN CORRAL ]]) -> 4358328 | AG11: Camioneta
A12: 33 | B12: CY1238 | C12: 2016-04-28 | D12: Automovil | E12: =IF(Tabla1[[#This Row],[Tipo]]="","Sin tipo vehículo",LOOKUP(Tabla1[[#This Row],[Tipo]],Tabla2[Tipo vehículo],Tabla2[Valor diario])) -> 1586 | F12: SUBARU | G12: 700 5 GL | H12: 1983 | I12: ROJO | J12: Documentación vencida | K12: JUZGADO POLICIA LOCAL | L12: Parte 462-2016 | M12: JORGE ALBERTO AGUILERA PLAZA | N12: =IF(Tabla1[[#This Row],[fecha ingreso]]="","Sin fecha ingreso",TODAY()-Tabla1[[#This Row],[fecha ingreso]]) -> 2748 | O12: =IF(Tabla1[[#This Row],[fecha ingreso]]="","Falta tipo vehículo",Tabla1[[#This Row],[Costo diario corral]]*Tabla1[[#This Row],[DIAS EN CORRAL ]]) -> 4358328 | AG12: Carro arrastre
A13: 40 | B13: DB1001 | C13: 2021-01-07 | D13: Automovil | E13: =IF(Tabla1[[#This Row],[Tipo]]="","Sin tipo vehículo",LOOKUP(Tabla1[[#This Row],[Tipo]],Tabla2[Tipo vehículo],Tabla2[Valor diario])) -> 1586 | F13: VOLKSWAGEN | G13: AMAZON GLS | H13: 1990 | I13: ROJO BERMELLON | J13: Documentación vencida | K13: JUZGADO POLICIA LOCAL | L13: Sin antecedentes | M13: AMADO ROJAS | N13: =IF(Tabla1[[#This Row],[fecha ingreso]]="","Sin fecha ingreso",TODAY()-Tabla1[[#This Row],[fecha ingreso]]) -> 1033 | O13: =IF(Tabla1[[#This Row],[fecha ingreso]]="","Falta tipo vehículo",Tabla1[[#This Row],[Costo diario corral]]*Tabla1[[#This Row],[DIAS EN CORRAL ]]) -> 1638338 | AG13: Cuatrimoto
A14: 3 | B14: DJ7830 | C14: 2021-08-10 | D14: Automovil | E14: =IF(Tabla1[[#This Row],[Tipo]]="","Sin tipo vehículo",LOOKUP(Tabla1[[#This Row],[Tipo]],Tabla2[Tipo vehículo],Tabla2[Valor diario])) -> 1586 | F14: TOYOTA | G14: COROLLA 1.3 GL SEDAN | H14: 1991 | I14: BLANCO | J14: DOCUMENTACION VENCIDA | K14: CARABINEROS DE CASABLANCA | L14: OFICIO : 554 | M14: PAMELA VERONICA VILLALOBOS RUIZ | N14: =IF(Tabla1[[#This Row],[fecha ingreso]]="","Sin fecha ingreso",TODAY()-Tabla1[[#This Row],[fecha ingreso]]) -> 818 | O14: =IF(Tabla1[[#This Row],[fecha ingreso]]="","Falta tipo vehículo",Tabla1[[#This Row],[Costo diario corral]]*Tabla1[[#This Row],[DIAS EN CORRAL ]]) -> 1297348 | AG14: Furgón
A15: 50 | B15: DKX011 | C15: 2018-07-11 | D15: Moto | E15: =IF(Tabla1[[#This Row],[Tipo]]="","Sin tipo vehículo",LOOKUP(Tabla1[[#This Row],[Tipo]],Tabla2[Tipo vehículo],Tabla2[Valor diario])) -> 317.26 | F15: MOTORRAD | G15: TTX 250CC | H15: 2016 | I15: ROJO | J15: Accidente ocurrido camino a Tapihue | K15: JUZGADO POLICIA LOCAL | L15: Parte 882, Of. 387 de fecha 10-07-2018 | M15: LUIS ROLANDO VARELA SALGADO | N15: =IF(Tabla1[[#This Row],[fecha ingreso]]="","Sin fecha ingreso",TODAY()-Tabla1[[#This Row],[fecha ingreso]]) -> 1944 | O15: =Tabla1[[#This Row],[DIAS EN CORRAL ]]*Tabla1[[#This Row],[Costo diario corral]] -> 616753.44 | AG15: Maquinaria industrial
A16: 41 | B16: DS1402 | C16: 2021-06-07 | D16: Automovil | E16: =IF(Tabla1[[#This Row],[Tipo]]="","Sin tipo vehículo",LOOKUP(Tabla1[[#This Row],[Tipo]],Tabla2[Tipo vehículo],Tabla2[Valor diario])) -> 1586 | F16: MITSUBISHI | G16: LANCER 1.8 GL | H16: 1992 | I16: BLANCO | J16: ABANDONADO VIA PUBLIC. | K16: Sin antecedentes | L16: Sin antecedentes | M16: INES PILAR ALFARO ORDENES | N16: =IF(Tabla1[[#This Row],[fecha ingreso]]="","Sin fecha ingreso",TODAY()-Tabla1[[#This Row],[fecha ingreso]]) -> 882 | O16: =IF(Tabla1[[#This Row],[fecha ingreso]]="","Falta tipo vehículo",Tabla1[[#This Row],[Costo diario corral]]*Tabla1[[#This Row],[DIAS EN CORRAL ]]) -> 1398852 | AG16: Microbus
B17: DU1206 | C17: 2016-04-28 | D17: Automovil | E17: =IF(Tabla1[[#This Row],[Tipo]]="","Sin tipo vehículo",LOOKUP(Tabla1[[#This Row],[Tipo]],Tabla2[Tipo vehículo],Tabla2[Valor diario])) -> 1586 | F17: CHEVROLET | G17: CHEVETTE DL | H17: 1992 | I17: AZUL | J17: ESTRUCTURA ABOLLADA | K17: JUZGADO POLICIA LOCAL | L17: Parte 446 | M17: ABRAHAM JHOCHUAR TAOIA MARIN | N17: =IF(Tabla1[[#This Row],[fecha ingreso]]="","Sin fecha ingreso",TODAY()-Tabla1[[#This Row],[fecha ingreso]]) -> 2748 | O17: =Tabla1[[#This Row],[DIAS EN CORRAL ]]*Tabla1[[#This Row],[Costo diario corral]] -> 4358328 | AG17: Minibús
A18: 4 | B18: EA2593 | C18: 2017-05-16 | D18: Automovil | E18: =IF(Tabla1[[#This Row],[Tipo]]="","Sin tipo vehículo",LOOKUP(Tabla1[[#This Row],[Tipo]],Tabla2[Tipo vehículo],Tabla2[Valor diario])) -> 1586 | F18: NISSAN | G18: SUNNY SEDAN 1.5 DX | H18: 1990 | I18: BLANCO | J18: INTENTO DE ATROPELLO A CARABINEROS | K18: JUZGADO POLICIA LOCAL | L18: PARTE 631 | M18: GALVARINO ANTONIO MOYANO VERA | N18: =IF(Tabla1[[#This Row],[fecha ingreso]]="","Sin fecha ingreso",TODAY()-Tabla1[[#This Row],[fecha ingreso]]) -> 2365 | O18: =IF(Tabla1[[#This Row],[fecha ingreso]]="","Falta tipo vehículo",Tabla1[[#This Row],[Costo diario corral]]*Tabla1[[#This Row],[DIAS EN CORRAL ]]) -> 3750890 | AG18: Minibús escolar
A19: 5 | B19: EU1760 | C19: 2016-12-19 | D19: Camioneta | E19: =IF(Tabla1[[#This Row],[Tipo]]="","Sin tipo vehículo",LOOKUP(Tabla1[[#This Row],[Tipo]],Tabla2[Tipo vehículo],Tabla2[Valor diario])) -> 1586 | F19: CHEVROLET | G19: LUV KB28L | H19: 1987 | I19: AZUL | J19: DOC. VENCIDO | K19: JUZGADO POLICIA LOCAL | L19: RUT: 11.734.870-9 | M19: SYLVIA DE LAS MERCEDES GAETE ORELLANA | N19: =IF(Tabla1[[#This Row],[fecha ingreso]]="","Sin fecha ingreso",TODAY()-Tabla1[[#This Row],[fecha ingreso]]) -> 2513 | O19: =IF(Tabla1[[#This Row],[fecha ingreso]]="","Falta tipo vehículo",Tabla1[[#This Row],[Costo diario corral]]*Tabla1[[#This Row],[DIAS EN CORRAL ]]) -> 3985618 | AG19: Moto
B20: FRTK30 | C20: 2017-08-29 | D20: Camión | E20: =IF(Tabla1[[#This Row],[Tipo]]="","Sin tipo vehículo",LOOKUP(Tabla1[[#This Row],[Tipo]],Tabla2[Tipo vehículo],Tabla2[Valor diario])) -> 3173 | F20: HYUNDAI | G20: HD 65 DLX | H20: 2013 | I20: BLANCO | J20: Recuperado por robo, se contactó a la aseguradora MAPFRE | K20: Fiscalía de Casablanca | L20: RUC 1700747166-1 | M20: MIGUEL PEÑA QUINTANA | N20: =IF(Tabla1[[#This Row],[fecha ingreso]]="","Sin fecha ingreso",TODAY()-Tabla1[[#This Row],[fecha ingreso]]) -> 2260 | O20: =Tabla1[[#This Row],[DIAS EN CORRAL ]]*Tabla1[[#This Row],[Costo diario corral]] -> 7170980 | AG20: Station wagon
A21: 35 | B21: FU6972 | C21: 2015-05-02 | D21: Automovil | E21: =IF(Tabla1[[#This Row],[Tipo]]="","Sin tipo vehículo",LOOKUP(Tabla1[[#This Row],[Tipo]],Tabla2[Tipo vehículo],Tabla2[Valor diario])) -> 1586 | F21: FIAT | G21: 147 GLS | H21: 1983 | I21: BLANCO | J21: DOCUMENTOS VENCIDOS | K21: JUZGADO POLICIA LOCAL | L21: Parte 330-2015 | M21: VICTOR ANTONIO RIVAS ARCOS | N21: =IF(Tabla1[[#This Row],[fecha ingreso]]="","Sin fecha ingreso",TODAY()-Tabla1[[#This Row],[fecha ingreso]]) -> 3110 | O21: =Tabla1[[#This Row],[Costo diario corral]]*Tabla1[[#This Row],[DIAS EN CORRAL ]] -> 4932460 | AG21: Taxi colectivo
A22: 6 | B22: GK4370 | C22: 2015-02-17 | D22: Automovil | E22: =IF(Tabla1[[#This Row],[Tipo]]="","Sin tipo vehículo",LOOKUP(Tabla1[[#This Row],[Tipo]],Tabla2[Tipo vehículo],Tabla2[Valor diario])) -> 1586 | F22: FIAT | G22: 147 GL | H22: 1980 | I22: AZUL | J22: DOC. VENCIDO | K22: JUZGADO POLICIA LOCAL | L22: PARTE: 256 | M22: PIERO SEGUNDO SALINAS CABALLERO | N22: =IF(Tabla1[[#This Row],[fecha ingreso]]="","Sin fecha ingreso",TODAY()-Tabla1[[#This Row],[fecha ingreso]]) -> 3184 | O22: =IF(Tabla1[[#This Row],[fecha ingreso]]="","Falta tipo vehículo",Tabla1[[#This Row],[Costo diario corral]]*Tabla1[[#This Row],[DIAS EN CORRAL ]]) -> 5049824 | AG22: Taxi ejecutivo
A23: 7 | B23: GV7647 | C23: 2016-05-18 | D23: Automovil | E23: =IF(Tabla1[[#This Row],[Tipo]]="","Sin tipo vehículo",LOOKUP(Tabla1[[#This Row],[Tipo]],Tabla2[Tipo vehículo],Tabla2[Valor diario])) -> 1586 | F23: MITSUBISHI | G23: LANCER 1,5 | H23: 1989 | I23: ROJO | J23: ESTRUCTURA ABOLLADA | K23: JUZGADO POLICIA LOCAL | L23: ROL: 106.081 | M23: JOSÉ LUIS VICENCIO ROBLES | N23: =IF(Tabla1[[#This Row],[fecha ingreso]]="","Sin fecha ingreso",TODAY()-Tabla1[[#This Row],[fecha ingreso]]) -> 2728 | O23: =IF(Tabla1[[#This Row],[fecha ingreso]]="","Falta tipo vehículo",Tabla1[[#This Row],[Costo diario corral]]*Tabla1[[#This Row],[DIAS EN CORRAL ]]) -> 4326608 | AG23: Taxi turismo
A24: 8 | B24: GY2481 | C24: 2017-05-16 | D24: Automovil | E24: =IF(Tabla1[[#This Row],[Tipo]]="","Sin tipo vehículo",LOOKUP(Tabla1[[#This Row],[Tipo]],Tabla2[Tipo vehículo],Tabla2[Valor diario])) -> 1586 | F24: NISSAN | G24: SUNNY 1.5 DX | H24: 1989 | I24: ROJO | J24: SIN DOCUMENTOS | K24: JUZGADO POLICIA LOCAL | L24: PARTE 638 | M24: ROBERTO CARLOS CUADRA LAGOS | N24: =IF(Tabla1[[#This Row],[fecha ingreso]]="","Sin fecha ingreso",TODAY()-Tabla1[[#This Row],[fecha ingreso]]) -> 2365 | O24: =IF(Tabla1[[#This Row],[fecha ingreso]]="","Falta tipo vehículo",Tabla1[[#This Row],[Costo diario corral]]*Tabla1[[#This Row],[DIAS EN CORRAL ]]) -> 3750890 | AG24: Taxibus
A25: 9 | B25: HR3479 | C25: 2015-02-24 | D25: Automovil | E25: =IF(Tabla1[[#This Row],[Tipo]]="","Sin tipo vehículo",LOOKUP(Tabla1[[#This Row],[Tipo]],Tabla2[Tipo vehículo],Tabla2[Valor diario])) -> 1586 | F25: FIAT | G25: 147 GL | H25: 1980 | I25: GRIS | J25: SIN DOCUMENTOS | K25: JUZGADO POLICIA LOCAL | L25: PARTE 314 | M25: JUAN SALVADOR CASTAÑEDA PONCE | N25: =IF(Tabla1[[#This Row],[fecha ingreso]]="","Sin fecha ingreso",TODAY()-Tabla1[[#This Row],[fecha ingreso]]) -> 3177 | O25: =IF(Tabla1[[#This Row],[fecha ingreso]]="","Falta tipo vehículo",Tabla1[[#This Row],[Costo diario corral]]*Tabla1[[#This Row],[DIAS EN CORRAL ]]) -> 5038722 | AG25: Todo terreno
A26: 10 | B26: HR9980 | C26: 2017-08-17 | D26: Camioneta | E26: =IF(Tabla1[[#This Row],[Tipo]]="","Sin tipo vehículo",LOOKUP(Tabla1[[#This Row],[Tipo]],Tabla2[Tipo vehículo],Tabla2[Valor diario])) -> 1586 | F26: CHEVROLET | G26: LUV 1.6 | H26: 1990 | I26: BLANCO | J26: SIN DOCUMENTOS | K26: JUZGADO POLICIA LOCAL | L26: PARTE:2141 Y 224 | M26: CHARLES IVAN SALVADOR TAPIA VERA | N26: =IF(Tabla1[[#This Row],[fecha ingreso]]="","Sin fecha ingreso",TODAY()-Tabla1[[#This Row],[fecha ingreso]]) -> 2272 | O26: =IF(Tabla1[[#This Row],[fecha ingreso]]="","Falta tipo vehículo",Tabla1[[#This Row],[Costo diario corral]]*Tabla1[[#This Row],[DIAS EN CORRAL ]]) -> 3603392 | AG26: Tractocamión
A27: 11 | B27: KP9846 | C27: 2019-06-05 | D27: Automovil | E27: =IF(Tabla1[[#This Row],[Tipo]]="","Sin tipo vehículo",LOOKUP(Tabla1[[#This Row],[Tipo]],Tabla2[Tipo vehículo],Tabla2[Valor diario])) -> 1586 | F27: MAZDA | G27: 323 GLX 1.6 | H27: 1993 | I27: ROJO | J27: DOCUMENTOS VENCIDOS | K27: JUZGADO POLICIA LOCAL | L27: Sin antecedentes | M27: LUIS RAMON SAEZ CASTRO | N27: =IF(Tabla1[[#This Row],[fecha ingreso]]="","Sin fecha ingreso",TODAY()-Tabla1[[#This Row],[fecha ingreso]]) -> 1615 | O27: =IF(Tabla1[[#This Row],[fecha ingreso]]="","Falta tipo vehículo",Tabla1[[#This Row],[Costo diario corral]]*Tabla1[[#This Row],[DIAS EN CORRAL ]]) -> 2561390 | AG27: Triciclo (torito)
A28: 57 | B28: KWY69 | C28: 2017-07-18 | D28: MOTO | E28: =IF(Tabla1[[#This Row],[Tipo]]="","Sin tipo vehículo",LOOKUP(Tabla1[[#This Row],[Tipo]],Tabla2[Tipo vehículo],Tabla2[Valor diario])) -> 317.26 | F28: WANGYE | G28: WY150T 3 | H28: 2019 | I28: ROJO | J28: DOCUMENTOS VENCIDOS | K28: JUZGADO POLICIA LOCAL | L28: Parte 1432-2021, Of. 1090 de Carabineros de Casablanca | M28: NAIRIN MARIA LOPEZ FLORES | N28: =IF(Tabla1[[#This Row],[fecha ingreso]]="","Sin fecha ingreso",TODAY()-Tabla1[[#This Row],[fecha ingreso]]) -> 2302 | O28: =Tabla1[[#This Row],[DIAS EN CORRAL ]]*Tabla1[[#This Row],[Costo diario corral]] -> 730332.52
A29: 12 | B29: LB4934 | C29: 2017-01-06 | D29: Automovil | E29: =IF(Tabla1[[#This Row],[Tipo]]="","Sin tipo vehículo",LOOKUP(Tabla1[[#This Row],[Tipo]],Tabla2[Tipo vehículo],Tabla2[Valor diario])) -> 1586 | F29: NISSAN | G29: SENTRA 1.6 EX SALOON | H29: 1994 | I29: BLANCO | J29: DOC. VENCIDO | K29: JUZGADO POLICIA LOCAL | L29: RUT:16.486.692-0 | M29: TERESA AMADA TOBAR RODA | N29: =IF(Tabla1[[#This Row],[fecha ingreso]]="","Sin fecha ingreso",TODAY()-Tabla1[[#This Row],[fecha ingreso]]) -> 2495 | O29: =IF(Tabla1[[#This Row],[fecha ingreso]]="","Falta tipo vehículo",Tabla1[[#This Row],[Costo diario corral]]*Tabla1[[#This Row],[DIAS EN CORRAL ]]) -> 3957070
A30: 13 | B30: LH9219 | C30: 2017-08-11 | D30: Automovil | E30: =IF(Tabla1[[#This Row],[Tipo]]="","Sin tipo vehículo",LOOKUP(Tabla1[[#This Row],[Tipo]],Tabla2[Tipo vehículo],Tabla2[Valor diario])) -> 1586 | F30: PEUGEOT | G30: 405 SXI 1.8 | H30: 1994 | I30: GRIS TUNGSTENO | J30: SIN DOCUMENTOS | K30: JUZGADO POLICIA LOCAL | L30: PARTE 1139 | M30: MARCOS ANTONIO BECERRA GAMBOA | N30: =IF(Tabla1[[#This Row],[fecha ingreso]]="","Sin fecha ingreso",TODAY()-Tabla1[[#This Row],[fecha ingreso]]) -> 2278 | O30: =IF(Tabla1[[#This Row],[fecha ingreso]]="","Falta tipo vehículo",Tabla1[[#This Row],[Costo diario corral]]*Tabla1[[#This Row],[DIAS EN CORRAL ]]) -> 3612908
A31: 14 | B31: LP9354 | C31: 2018-01-23 | D31: Automovil | E31: =IF(Tabla1[[#This Row],[Tipo]]="","Sin tipo vehículo",LOOKUP(Tabla1[[#This Row],[Tipo]],Tabla2[Tipo vehículo],Tabla2[Valor diario])) -> 1586 | F31: PEUGEOT | G31: 405 STI 2.0 | H31: 1995 | I31: AZUL MING | J31: VEHICULO ABANDONADO EN V/P | K31: JUZGADO POLICIA LOCAL | L31: Of. 24 del 11-01-2018 | M31: INVERSIONES SAN JORGE S.A | N31: =IF(Tabla1[[#This Row],[fecha ingreso]]="","Sin fecha ingreso",TODAY()-Tabla1[[#This Row],[fecha ingreso]]) -> 2113 | O31: =IF(Tabla1[[#This Row],[fecha ingreso]]="","Falta tipo vehículo",Tabla1[[#This Row],[Costo diario corral]]*Tabla1[[#This Row],[DIAS EN CORRAL ]]) -> 3351218
A32: 15 | B32: LV1305 | C32: 2018-07-29 | D32: Automovil | E32: =IF(Tabla1[[#This Row],[Tipo]]="","Sin tipo vehículo",LOOKUP(Tabla1[[#This Row],[Tipo]],Tabla2[Tipo vehículo],Tabla2[Valor diario])) -> 1586 | F32: OPEL | G32: VECTRA 2.0 E | H32: 1995 | I32: ROJO BURDEOS | J32: FISCALIA | K32: Fiscalia de Casablanca | L32: PARTE 1193 | M32: SALAS Y SALAS SOCIEDAD COMERCIAL Y DE SERVICIOS LIMITADA | N32: =IF(Tabla1[[#This Row],[fecha ingreso]]="","Sin fecha ingreso",TODAY()-Tabla1[[#This Row],[fecha ingreso]]) -> 1926 | O32: =IF(Tabla1[[#This Row],[fecha ingreso]]="","Falta tipo vehículo",Tabla1[[#This Row],[Costo diario corral]]*Tabla1[[#This Row],[DIAS EN CORRAL ]]) -> 3054636
A33: 52 | B33: MA501 | C33: 2017-08-17 | D33: MOTO | E33: =IF(Tabla1[[#This Row],[Tipo]]="","Sin tipo vehículo",LOOKUP(Tabla1[[#This Row],[Tipo]],Tabla2[Tipo vehículo],Tabla2[Valor diario])) -> 317.26 | F33: KINLON | G33: JL200GY 2 | H33: 2012 | I33: NEGRO | J33: DOCUMENTACION VENCIDA | K33: JUZGADO POLICIA LOCAL | L33: Sin antecedentes | M33: PEDRO ALBERTO HERNANDEZ TOLEDO | N33: =IF(Tabla1[[#This Row],[fecha ingreso]]="","Sin fecha ingreso",TODAY()-Tabla1[[#This Row],[fecha ingreso]]) -> 2272 | O33: =Tabla1[[#This Row],[DIAS EN CORRAL ]]*Tabla1[[#This Row],[Costo diario corral]] -> 720814.72
A34: 16 | B34: NE4479 | C34: 2016-03-23 | D34: Automovil | E34: =IF(Tabla1[[#This Row],[Tipo]]="","Sin tipo vehículo",LOOKUP(Tabla1[[#This Row],[Tipo]],Tabla2[Tipo vehículo],Tabla2[Valor diario])) -> 1586 | F34: CHEVROLET | G34: MONZA GL 1.8 | H34: 1995 | I34: NEGRO ROJO | J34: ABANDONADO VIA PUBLIC. | K34: JUZGADO POLICIA LOCAL | L34: PARTE 305 / | M34: LUIS ENRIQUE LORCA ZAMBRANO | N34: =IF(Tabla1[[#This Row],[fecha ingreso]]="","Sin fecha ingreso",TODAY()-Tabla1[[#This Row],[fecha ingreso]]) -> 2784 | O34: =IF(Tabla1[[#This Row],[fecha ingreso]]="","Falta tipo vehículo",Tabla1[[#This Row],[Costo diario corral]]*Tabla1[[#This Row],[DIAS EN CORRAL ]]) -> 4415424
A35: 32 | B35: NJ580 | C35: 2017-07-07 | D35: Moto | E35: =IF(Tabla1[[#This Row],[Tipo]]="","Sin tipo vehículo",LOOKUP(Tabla1[[#This Row],[Tipo]],Tabla2[Tipo vehículo],Tabla2[Valor diario])) -> 317.26 | F35: LIFAN | G35: LF 150 11 | H35: 2006 | I35: NEGRO GRIS | J35: DOCUMENTACION VENCIDA | K35: JUZGADO POLICIA LOCAL | L35: Sin antecedentes | M35: CRISTIAN ARTURO PICERO CARRASCO | N35: =IF(Tabla1[[#This Row],[fecha ingreso]]="","Sin fecha ingreso",TODAY()-Tabla1[[#This Row],[fecha ingreso]]) -> 2313 | O35: =Tabla1[[#This Row],[DIAS EN CORRAL ]]*Tabla1[[#This Row],[Costo diario corral]] -> 733822.38
A36: 30 | B36: NN3286 | C36: 2021-07-07 | D36: Automovil | E36: =IF(Tabla1[[#This Row],[Tipo]]="","Sin tipo vehículo",LOOKUP(Tabla1[[#This Row],[Tipo]],Tabla2[Tipo vehículo],Tabla2[Valor diario])) -> 1586 | F36: DAEWOO | G36: RACER | H36: 1995 | I36: BLANCO | J36: DOCUMENTACION VENCIDA | K36: JUZGADO POLICIA LOCAL | L36: Sin antecedentes | M36: DIEGO ARMANDO CHAURA VARGAS | N36: =IF(Tabla1[[#This Row],[fecha ingreso]]="","Sin fecha ingreso",TODAY()-Tabla1[[#This Row],[fecha ingreso]]) -> 852 | O36: =Tabla1[[#This Row],[DIAS EN CORRAL ]]*Tabla1[[#This Row],[Costo diario corral]] -> 1351272
A37: 47 | B37: OP991 | C37: 2021-07-07 | D37: Moto | E37: =IF(Tabla1[[#This Row],[Tipo]]="","Sin tipo vehículo",LOOKUP(Tabla1[[#This Row],[Tipo]],Tabla2[Tipo vehículo],Tabla2[Valor diario])) -> 317.26 | F37: HONDA | G37: CGL 125 124CC | H37: 2014 | I37: PLATEADO | J37: SIN DOCUMENTOS | K37: JUZGADO POLICIA LOCAL | L37: Sin antecedentes | M37: MONICA ANGELICA MUNITA ROURET | N37: =IF(Tabla1[[#This Row],[fecha ingreso]]="","Sin fecha ingreso",TODAY()-Tabla1[[#This Row],[fecha ingreso]]) -> 852 | O37: =Tabla1[[#This Row],[DIAS EN CORRAL ]]*Tabla1[[#This Row],[Costo diario corral]] -> 270305.52
A38: 17 | B38: PA1301 | C38: 2016-02-22 | D38: Automovil | E38: =IF(Tabla1[[#This Row],[Tipo]]="","Sin tipo vehículo",LOOKUP(Tabla1[[#This Row],[Tipo]],Tabla2[Tipo vehículo],Tabla2[Valor diario])) -> 1586 | F38: MAZDA | G38: ARTIS GLX BPS 1.6 | H38: 1996 | I38: BLANCO | J38: SIN DOCUMENTOS | K38: JUZGADO POLICIA LOCAL | L38: RUc: 15.891.566-9 | M38: MANUEL EDUARDO GUTIERREZ URREA | N38: =IF(Tabla1[[#This Row],[fecha ingreso]]="","Sin fecha ingreso",TODAY()-Tabla1[[#This Row],[fecha ingreso]]) -> 2814 | O38: =IF(Tabla1[[#This Row],[fecha ingreso]]="","Falta tipo vehículo",Tabla1[[#This Row],[Costo diario corral]]*Tabla1[[#This Row],[DIAS EN CORRAL ]]) -> 4463004
A39: 54 | B39: PP333 | C39: 2017-11-22 | D39: Moto | E39: =IF(Tabla1[[#This Row],[Tipo]]="","Sin tipo vehículo",LOOKUP(Tabla1[[#This Row],[Tipo]],Tabla2[Tipo vehículo],Tabla2[Valor diario])) -> 317.26 | F39: VENTO | G39: PHANTERA GT5 | H39: 2007 | I39: NEGRO | J39: Sin documentación al día | K39: JUZGADO POLICIA LOCAL | L39: Parte 1656, oficio 742 Carabineros de fecha 22-11-2017 | M39: GIOVANNI ALEXIS SILVA YAÑEZ | N39: =IF(Tabla1[[#This Row],[fecha ingreso]]="","Sin fecha ingreso",TODAY()-Tabla1[[#This Row],[fecha ingreso]]) -> 2175 | O39: =Tabla1[[#This Row],[DIAS EN CORRAL ]]*Tabla1[[#This Row],[Costo diario corral]] -> 690040.5
A40: 19 | B40: PZ1709 | C40: 2014-07-08 | D40: Automovil | E40: =IF(Tabla1[[#This Row],[Tipo]]="","Sin tipo vehículo",LOOKUP(Tabla1[[#This Row],[Tipo]],Tabla2[Tipo vehículo],Tabla2[Valor diario])) -> 1586 | F40: OPEL | G40: ASTRA 60 PWR | H40: 1997 | I40: ROJO BURDEO | J40: SIN DOCUMENTOS | K40: JUZGADO POLICIA LOCAL | L40: RUT:13.543.381-0 | M40: JUAN FERNANDO COVARRUBIAS SOTO | N40: =IF(Tabla1[[#This Row],[fecha ingreso]]="","Sin fecha ingreso",TODAY()-Tabla1[[#This Row],[fecha ingreso]]) -> 3408 | O40: =IF(Tabla1[[#This Row],[fecha ingreso]]="","Falta tipo vehículo",Tabla1[[#This Row],[Costo diario corral]]*Tabla1[[#This Row],[DIAS EN CORRAL ]]) -> 5405088
A41: 49 | B41: QC884 | C41: 2020-07-08 | D41: Moto | E41: =IF(Tabla1[[#This Row],[Tipo]]="","Sin tipo vehículo",LOOKUP(Tabla1[[#This Row],[Tipo]],Tabla2[Tipo vehículo],Tabla2[Valor diario])) -> 317.26 | F41: HONDA | G41: CGL 125 | H41: 2013 | I41: PLATEADO PLATA | J41: SIN DOCUMENTOS | K41: JUZGADO POLICIA LOCAL | L41: Parte 761 2022, Oficio 284 de la Quinta Comisaria de Casablanca | M41: MANUEL ANDRES NUÑEZ FREDES | N41: =IF(Tabla1[[#This Row],[fecha ingreso]]="","Sin fecha ingreso",TODAY()-Tabla1[[#This Row],[fecha ingreso]]) -> 1216 | O41: =IF(Tabla1[[#This Row],[fecha ingreso]]="","Falta tipo vehículo",Tabla1[[#This Row],[Costo diario corral]]*Tabla1[[#This Row],[DIAS EN CORRAL ]]) -> 385788.16
A42: 20 | B42: RN6952 | C42: 2014-08-13 | D42: Camioneta | E42: =IF(Tabla1[[#This Row],[Tipo]]="","Sin tipo vehículo",LOOKUP(Tabla1[[#This Row],[Tipo]],Tabla2[Tipo vehículo],Tabla2[Valor diario])) -> 1586 | F42: OPEL | G42: CORSA PICK UP STD | H42: 1997 | I42: ROJO | J42: SIN DOCUMENTOS | K42: JUZGADO POLICIA LOCAL | L42: PARTE 1045 | M42: JORGE MIGUEL ARANGUIZ LÓPEZ | N42: =IF(Tabla1[[#This Row],[fecha ingreso]]="","Sin fecha ingreso",TODAY()-Tabla1[[#This Row],[fecha ingreso]]) -> 3372 | O42: =IF(Tabla1[[#This Row],[fecha ingreso]]="","Falta tipo vehículo",Tabla1[[#This Row],[Costo diario corral]]*Tabla1[[#This Row],[DIAS EN CORRAL ]]) -> 5347992
A43: 21 | B43: SG8580 | C43: 2016-10-12 | D43: Automovil | E43: =IF(Tabla1[[#This Row],[Tipo]]="","Sin tipo vehículo",LOOKUP(Tabla1[[#This Row],[Tipo]],Tabla2[Tipo vehículo],Tabla2[Valor diario])) -> 1586 | F43: FORD | G43: MONDEO CLX 1.8 AUT | H43: 1998 | I43: GRIS PLATINO | J43: DOC. VENCIDO | K43: JUZGADO POLICIA LOCAL | L43: PARTE 546 | M43: PATRICIA ALEJANDRA HORMAZABAL VILLA | N43: =IF(Tabla1[[#This Row],[fecha ingreso]]="","Sin fecha ingreso",TODAY()-Tabla1[[#This Row],[fecha ingreso]]) -> 2581 | O43: =IF(Tabla1[[#This Row],[fecha ingreso]]="","Falta tipo vehículo",Tabla1[[#This Row],[Costo diario corral]]*Tabla1[[#This Row],[DIAS EN CORRAL ]]) -> 4093466
A44: 22 | B44: TE7367 | C44: 2016-04-24 | D44: Automovil | E44: =IF(Tabla1[[#This Row],[Tipo]]="","Sin tipo vehículo",LOOKUP(Tabla1[[#This Row],[Tipo]],Tabla2[Tipo vehículo],Tabla2[Valor diario])) -> 1586 | F44: PEUGEOT | G44: 106 EQUINOXE 1.1 | H44: 1999 | I44: AZUL NEVIS | J44: SIN DOCUMENTOS | K44: JUZGADO POLICIA LOCAL | L44: OFICIO : 306 | M44: FRANCISCO JAVIER FERNANDEZ ZUÑIGA | N44: =IF(Tabla1[[#This Row],[fecha ingreso]]="","Sin fecha ingreso",TODAY()-Tabla1[[#This Row],[fecha ingreso]]) -> 2752 | O44: =IF(Tabla1[[#This Row],[fecha ingreso]]="","Falta tipo vehículo",Tabla1[[#This Row],[Costo diario corral]]*Tabla1[[#This Row],[DIAS EN CORRAL ]]) -> 4364672
A45: 58 | B45: TU985 | C45: 2020-07-08 | D45: Moto | E45: =IF(Tabla1[[#This Row],[Tipo]]="","Sin tipo vehículo",LOOKUP(Tabla1[[#This Row],[Tipo]],Tabla2[Tipo vehículo],Tabla2[Valor diario])) -> 317.26 | F45: DAYUN | G45: DY150 12 | H45: 2008 | I45: NEGRO | J45: SIN DOCUMENTOS | K45: JUZGADO POLICIA LOCAL | M45: CESAR MARIO NUÑEZ ESPINOZA | N45: =IF(Tabla1[[#This Row],[fecha ingreso]]="","Sin fecha ingreso",TODAY()-Tabla1[[#This Row],[fecha ingreso]]) -> 1216 | O45: =Tabla1[[#This Row],[DIAS EN CORRAL ]]*Tabla1[[#This Row],[Costo diario corral]] -> 385788.16
A46: 31 | B46: UL0206 | C46: 2020-07-08 | D46: Moto | E46: =IF(Tabla1[[#This Row],[Tipo]]="","Sin tipo vehículo",LOOKUP(Tabla1[[#This Row],[Tipo]],Tabla2[Tipo vehículo],Tabla2[Valor diario])) -> 317.26 | F46: TAKASAKI | G46: WY150T 13 | H46: 2008 | I46: ROJO | J46: SIN DOCUMENTOS | K46: JUZGADO POLICIA LOCAL | M46: MARIA ANGELICA VALDES IBAÑEZ | N46: =IF(Tabla1[[#This Row],[fecha ingreso]]="","Sin fecha ingreso",TODAY()-Tabla1[[#This Row],[fecha ingreso]]) -> 1216 | O46: =Tabla1[[#This Row],[DIAS EN CORRAL ]]*Tabla1[[#This Row],[Costo diario corral]] -> 385788.16
A47: 37 | B47: VG0356 | C47: 2020-07-08 | D47: MOTO | E47: =IF(Tabla1[[#This Row],[Tipo]]="","Sin tipo vehículo",LOOKUP(Tabla1[[#This Row],[Tipo]],Tabla2[Tipo vehículo],Tabla2[Valor diario])) -> 317.26 | F47: QINGRI | G47: QM200 2V | H47: 2009 | I47: AZUL | J47: SIN DOCUMENTOS | K47: JUZGADO POLICIA LOCAL | L47: Parte 221-2022, Of. 89-2022 de Carabineros de Casablanca | M47: MARCOS CLEMENTE ARAVENA ARAVENA | N47: =IF(Tabla1[[#This Row],[fecha ingreso]]="","Sin fecha ingreso",TODAY()-Tabla1[[#This Row],[fecha ingreso]]) -> 1216 | O47: =Tabla1[[#This Row],[DIAS EN CORRAL ]]*Tabla1[[#This Row],[Costo diario corral]] -> 385788.16
A48: 60 | B48: VS0152 | C48: 2017-01-20 | D48: Moto | E48: =IF(Tabla1[[#This Row],[Tipo]]="","Sin tipo vehículo",LOOKUP(Tabla1[[#This Row],[Tipo]],Tabla2[Tipo vehículo],Tabla2[Valor diario])) -> 317.26 | F48: HONDA | G48: 125 Elite | H48: 2010 | I48: Negro | J48: Sin documentos al día | K48: JUZGADO POLICIA LOCAL | L48: Parte 3802 de fecha 30-12-2016 | M48: JOSE LUIS GUERRA BAHAMONDES | N48: =IF(Tabla1[[#This Row],[fecha ingreso]]="","Sin fecha ingreso",TODAY()-Tabla1[[#This Row],[fecha ingreso]]) -> 2481 | O48: =Tabla1[[#This Row],[DIAS EN CORRAL ]]*Tabla1[[#This Row],[Costo diario corral]] -> 787122.06
A49: 56 | B49: VV0783 | C49: 2017-01-20 | D49: Moto | E49: =IF(Tabla1[[#This Row],[Tipo]]="","Sin tipo vehículo",LOOKUP(Tabla1[[#This Row],[Tipo]],Tabla2[Tipo vehículo],Tabla2[Valor diario])) -> 317.26 | F49: HONDA | G49: STORM 125 CC | H49: 2010 | I49: PLATEADO PLATA | J49: Sin documentos al día | K49: JUZGADO POLICIA LOCAL | L49: Parte 1183-2022 | M49: LUIS ARTURO TORRES SANCHEZ | N49: =IF(Tabla1[[#This Row],[fecha ingreso]]="","Sin fecha ingreso",TODAY()-Tabla1[[#This Row],[fecha ingreso]]) -> 2481 | O49: =Tabla1[[#This Row],[DIAS EN CORRAL ]]*Tabla1[[#This Row],[Costo diario corral]] -> 787122.06
A50: 23 | B50: WC4991 | C50: 2016-02-22 | D50: Automovil | E50: =IF(Tabla1[[#This Row],[Tipo]]="","Sin tipo vehículo",LOOKUP(Tabla1[[#This Row],[Tipo]],Tabla2[Tipo vehículo],Tabla2[Valor diario])) -> 1586 | F50: VOLKSWAGEN | G50: GOL G3 COMFORTLINE 1.6 | H50: 2006 | I50: BLANCO CRISTAL | J50: PARTICIPA EN EVENTO MASIVO | K50: JUZGADO POLICIA LOCAL | L50: PARTE 119 | M50: RICARDO ANDRES CIFUENTES CANTILLANA | N50: =IF(Tabla1[[#This Row],[fecha ingreso]]="","Sin fecha ingreso",TODAY()-Tabla1[[#This Row],[fecha ingreso]]) -> 2814 | O50: =IF(Tabla1[[#This Row],[fecha ingreso]]="","Falta tipo vehículo",Tabla1[[#This Row],[Costo diario corral]]*Tabla1[[#This Row],[DIAS EN CORRAL ]]) -> 4463004
A51: 24 | B51: WD5188 | C51: 2016-07-19 | D51: Automovil | E51: =IF(Tabla1[[#This Row],[Tipo]]="","Sin tipo vehículo",LOOKUP(Tabla1[[#This Row],[Tipo]],Tabla2[Tipo vehículo],Tabla2[Valor diario])) -> 1586 | F51: PEUGEOT | G51: 206 XR 1.6 | H51: 2006 | I51: BLANCO BANQUISE | J51: SIN DOCUMENTOS | K51: JUZGADO POLICIA LOCAL | L51: PARTE 592 | M51: FERNANDA CAROLINA RUZ AGUIRRE | N51: =IF(Tabla1[[#This Row],[fecha ingreso]]="","Sin fecha ingreso",TODAY()-Tabla1[[#This Row],[fecha ingreso]]) -> 2666 | O51: =IF(Tabla1[[#This Row],[fecha ingreso]]="","Falta tipo vehículo",Tabla1[[#This Row],[Costo diario corral]]*Tabla1[[#This Row],[DIAS EN CORRAL ]]) -> 4228276
A52: 25 | B52: XA2927 | C52: 2015-01-23 | D52: Automovil | E52: =IF(Tabla1[[#This Row],[Tipo]]="","Sin tipo vehículo",LOOKUP(Tabla1[[#This Row],[Tipo]],Tabla2[Tipo vehículo],Tabla2[Valor diario])) -> 1586 | F52: TOYOTA | G52: YARIS XLI 1.5 | H52: 2003 | I52: PLATEADO SILVER MICA ME | J52: SIN DOCUMENTOS | K52: JUZGADO POLICIA LOCAL | L52: RUT: 18.276.514-7 | M52: MIGUEL ANGEL PEREIRA CAVIERES | N52: =IF(Tabla1[[#This Row],[fecha ingreso]]="","Sin fecha ingreso",TODAY()-Tabla1[[#This Row],[fecha ingreso]]) -> 3209 | O52: =IF(Tabla1[[#This Row],[fecha ingreso]]="","Falta tipo vehículo",Tabla1[[#This Row],[Costo diario corral]]*Tabla1[[#This Row],[DIAS EN CORRAL ]]) -> 5089474
A53: 26 | B53: ZJ1583 | C53: 2016-02-22 | D53: Station wagon | E53: =IF(Tabla1[[#This Row],[Tipo]]="","Sin tipo vehículo",LOOKUP(Tabla1[[#This Row],[Tipo]],Tabla2[Tipo vehículo],Tabla2[Valor diario])) -> 1586 | F53: TOYOTA | G53: 4 RUNNER SR5 4.0 AUT | H53: 2006 | I53: GRIS OSCURO MICA ME | J53: DOC. VENCIDO | K53: JUZGADO POLICIA LOCAL | L53: rol: 14.73416 | M53: ORGANISMO TECNICO EJECUTOR DE CAPACITACION BICENTENARIO LIMITADA | N53: =IF(Tabla1[[#This Row],[fecha ingreso]]="","Sin fecha ingreso",TODAY()-Tabla1[[#This Row],[fecha ingreso]]) -> 2814 | O53: =IF(Tabla1[[#This Row],[fecha ingreso]]="","Falta tipo vehículo",Tabla1[[#This Row],[Costo diario corral]]*Tabla1[[#This Row],[DIAS EN CORRAL ]]) -> 4463004
A54: 27 | B54: ZP1754 | C54: 2016-07-19 | D54: Automovil | E54: =IF(Tabla1[[#This Row],[Tipo]]="","Sin tipo vehículo",LOOKUP(Tabla1[[#This Row],[Tipo]],Tabla2[Tipo vehículo],Tabla2[Valor diario])) -> 1586 | F54: TOYOTA | G54: YARIS GLI 1.5 | H54: 2006 | I54: BLANCO | J54: VEHICULO FRONTIS CHOCADO | K54: FISCALIA DE VALPARAISO | L54: Parte 4591-2015, Subcomisaría IAT | M54: GREGORIO HERNÁN MATUS ALVARADO | N54: =IF(Tabla1[[#This Row],[fecha ingreso]]="","Sin fecha ingreso",TODAY()-Tabla1[[#This Row],[fecha ingreso]]) -> 2666 | O54: =IF(Tabla1[[#This Row],[fecha ingreso]]="","Falta tipo vehículo",Tabla1[[#This Row],[Costo diario corral]]*Tabla1[[#This Row],[DIAS EN CORRAL ]]) -> 4228276

Sheet Por confirmar en corral
A5: 46 | B5: FSY63 | D5: Moto | E5: =IF(Tabla1[[#This Row],[Tipo]]="","Sin tipo vehículo",LOOKUP(Tabla1[[#This Row],[Tipo]],Tabla2[Tipo vehículo],Tabla2[Valor diario])) ->  | F5: HONDA | G5: CB 1 | H5: 2016 | I5: AZUL | N5: ENRIQUE MARCELO OLIVA OSORIO | O5: 10.714.860-4 | P5: RUIZ TAGLE 1449 | Q5: ESTACION CENTRAL | R5: =IF(Tabla1[[#This Row],[fecha ingreso]]="","Sin fecha ingreso",TODAY()-Tabla1[[#This Row],[fecha ingreso]]) ->  | AK5: Taxi básico
A6: 48 | B6: KPW23 | D6: MOTO | E6: =IF(Tabla1[[#This Row],[Tipo]]="","Sin tipo vehículo",LOOKUP(Tabla1[[#This Row],[Tipo]],Tabla2[Tipo vehículo],Tabla2[Valor diario])) ->  | F6: LIFAN | G6: LF 150 5 | H6: 2019 | I6: NEGRO | N6: CARLOS ALBERTO PINEDA ALVARAY | O6: 25.645.607-9 | P6: EL BOSQUE NORTE 0440 PISO 07 | Q6: LAS CONDES | R6: =IF(Tabla1[[#This Row],[fecha ingreso]]="","Sin fecha ingreso",TODAY()-Tabla1[[#This Row],[fecha ingreso]]) -> 
A7: 18 | B7: PC8722 | C7: 2019-12-26 | D7: Automovil | E7: =IF(Tabla1[[#This Row],[Tipo]]="","Sin tipo vehículo",LOOKUP(Tabla1[[#This Row],[Tipo]],Tabla2[Tipo vehículo],Tabla2[Valor diario])) -> 317.26 | F7: MAZDA | G7: 323 GLX 1.6 | H7: 1996 | I7: BLANCO | J7: DOC. VENCIDO | K7: CARABINEROS DE CASABLANCA | N7: ISAAC ALBERNEGO CORDOVA BUGUEÑO | O7: 12.957.543-3 | P7: CONGO 1152, VILLA HERMOSA | Q7: VIÑA DEL MAR | R7: =IF(Tabla1[[#This Row],[fecha ingreso]]="","Sin fecha ingreso",TODAY()-Tabla1[[#This Row],[fecha ingreso]]) -> 2222 | S7: =IF(Tabla1[[#This Row],[fecha ingreso]]="","Falta tipo vehículo",Tabla1[[#This Row],[Costo diario corral]]*Tabla1[[#This Row],[DIAS EN CORRAL ]]) -> 704951.72

Sheet Tablas
A2: UTM SEPTIEMBRE - 2023 | B2: 63452
A5: Tipo vehículo | B5: Valor diario
A6: Automovil | B6: =ROUND($B$2*0.025,0) -> 1586
A7: Biciceta o similar | B7: =ROUND($B$2*0.005,0) -> 317
A8: Bus | B8: =ROUND($B$2*0.05,0) -> 3173
A9: Camión | B9: =ROUND($B$2*0.05,0) -> 3173
A10: Camioneta | B10: =ROUND($B$2*0.025,0) -> 1586
A11: Carro arrastre | B11: =ROUND($B$2*0.05,0) -> 3173
A12: Cuatrimoto | B12: =$B$2*0.005 -> 317.26
A13: Furgón | B13: =ROUND($B$2*0.025,0) -> 1586
A14: Maquinaria industrial | B14: =ROUND($B$2*0.05,0) -> 3173
A15: Microbus | B15: =ROUND($B$2*0.05,0) -> 3173
A16: Minibús | B16: =ROUND($B$2*0.025,0) -> 1586
A17: Minibús escolar | B17: =ROUND($B$2*0.025,0) -> 1586
A18: Moto | B18: =$B$2*0.005 -> 317.26
A19: Station wagon | B19: =ROUND($B$2*0.025,0) -> 1586
A20: Taxi básico | B20: 1586
A21: Taxi colectivo | B21: 1586
A22: Taxi ejecutivo | B22: 1586
A23: Taxi turismo | B23: 1586
A24: Taxibus | B24: =ROUND($B$2*0.05,0) -> 3173
A25: Todo terreno | B25: 1586
A26: Tractocamión | B26: =ROUND($B$2*0.05,0) -> 3173
A27: Triciclo (torito) | B27: =ROUND($B$2*0.005,0) -> 317
